lending/lending_fUSD_20250406
["ID","MTS","AMOUNT","RATE_DAILY","PERIOD"]
[357264206,1743965224971,151.0,0.00039388,30]
[357264207,1743965225598,151.0,0.00039388,30]
[357264208,1743965226675,151.0,0.00039388,30]
[357264209,1743965226928,151.0,0.00039388,30]
[357264210,1743965227545,151.0,0.00039388,30]
[357264211,1743965235460,1000.0,0.00039388,120]
[357264212,1743965240093,-374.24856163,0.000269,2]
[357264213,1743965240115,-374.24856161,0.00027289,2]
[357264214,1743965240137,-13944.64134113,0.00037489,2]
[357264215,1743965240158,-2000.0,0.00037501,2]
[357264216,1743965240182,-278.18970221,0.0003768,2]
[357264217,1743965240205,-168.28,0.00037733,2]
[357264218,1743965240227,-423.09665576,0.00037766,2]
[357264219,1743965240251,-423.09665576,0.0003795,2]
[357264220,1743965240272,-2385.78,0.00037974,2]
[357264221,1743965240294,-150.99,0.00037974,2]
[357264222,1743965240316,-500.0,0.00038,120]
[357264223,1743965240340,-300.0,0.00038,2]
[357264224,1743965240361,-1263.72,0.00038014,2]
[357264225,1743965240383,-423.09665576,0.00038282,2]
[357264226,1743965240405,-300.0,0.0003838,2]
[357264227,1743965240425,-2751.0,0.00038471,120]
[357264228,1743965240450,-250.0,0.00038514,2]
[357264229,1743965240473,-208.13,0.00038598,2]
[357264230,1743965240494,-423.09665576,0.00038617,2]
[357264231,1743965240515,-2267.4154007,0.00038626,2]
[357264232,1743965240536,-300.0,0.0003876,2]
[357264233,1743965240556,-23900.0,0.00038772,2]
[357264234,1743965240577,-423.09665576,0.00038779,2]
[357264235,1743965240599,-2413.939,0.00038849,53]
[357264236,1743965240619,-177.494,0.00038849,53]
[357264237,1743965240640,-254.37,0.00038849,2]
[357264238,1743965240661,-423.09665584,0.00039026,2]
[357264239,1743965240683,-184.59,0.00039043,2]
[357264240,1743965240704,-300.0,0.0003914,2]
[357264241,1743965240724,-159.32,0.00039153,2]
[357264242,1743965240745,-1746.58841527,0.00039288,2]
[357264243,1743965240766,-166.52590802,0.00039288,2]
[357264244,1743965240786,-165.6138,0.00039296,30]
[357264245,1743965240807,-57860.67796038,0.00039325,2]
[357264246,1743965240828,-503.54707972,0.00039373,5]
[357264247,1743965240849,-151.56,0.00039378,2]
[357264248,1743965240871,-10005.09695628,0.00039388,3]
[357264249,1743965240899,-151.0,0.00039399,14]
[357264250,1743965240921,-151.0,0.00039399,14]
[357264251,1743965240945,-151.0,0.00039399,14]
[357264252,1743965240966,-151.0,0.00039399,14]
[357264253,1743965240988,-151.0,0.00039399,14]
[357264254,1743965241009,-151.0,0.00039399,14]
[357264255,1743965241031,-461.890699,0.00039399,14]
[357264256,1743965241052,-461.890699,0.00039399,14]
[357264257,1743965241074,-151.0,0.00039399,14]
[357264258,1743965241096,-151.0,0.00039399,14]
[357264259,1743965241118,-151.0,0.00039399,14]
[357264260,1743965241140,-151.0,0.00039399,14]
[357264261,1743965241161,-151.0,0.00039399,14]
[357264262,1743965241183,-134.89376902,0.00039399,14]
[357264263,1743965241221,-16.10623098,0.00039399,14]
[357264264,1743965241245,-151.0,0.00039399,14]
[357264265,1743965241267,-700.84,0.00039422,2]
[357264266,1743965241291,-300.0,0.0003952,2]
[357264267,1743965241313,-13267.05286675,0.0003961,2]
[357264268,1743965241341,-1135.71,0.00039628,2]
[357264269,1743965241363,-350.0,0.00039671,2]
[357264270,1743965241385,-292.64450604,0.000399,2]
[357264271,1743965241406,-208.13,0.00039968,2]
[357264272,1743965241427,-584.91858754,0.00039973,5]
[357264273,1743965241449,-501.54245116,0.00039973,5]
[357264274,1743965241471,-15754.8742077,0.0003999,3]
[357264275,1743965241493,-4094.28937676,0.0004,30]
[357264276,1743965243083,-536.51566382,0.0004,30]
[357264277,1743965247425,-13596.10393301,0.0004,30]
[357264278,1743965247447,-168565.21013656,0.0004,30]
[357264291,1743965432265,-937.5937671,0.00039189,115]
[357264292,1743965432275,-300.0,0.00039288,5]
[357264293,1743965432285,-1982.42589055,0.00039289,2]
[357264294,1743965432297,-687.804056,0.00039289,48]
[357264295,1743965432310,-62.79293635,0.00039289,2]
[357264296,1743965432383,-1613.92894622,0.00039289,2]
[357264297,1743965432395,-112.96532704,0.00039289,2]
[357264298,1743965432406,-419.0,0.0003929,2]
[357264299,1743965432416,-222.423968,0.000393,29]
[357264300,1743965432426,-151.23,0.00039379,2]
[357264301,1743965432437,-7056.51453755,0.00039389,2]
[357264302,1743965432471,-2439.461115,0.00039389,2]
[357264303,1743965432482,-476.1525,0.00039389,2]
[357264304,1743965432494,-360.000006,0.00039389,2]
[357264305,1743965432507,-4197.95407431,0.00039389,2]
[357264306,1743965432519,-807.3,0.00039389,2]
[357264307,1743965432531,-797.32251551,0.00039389,2]
[357264308,1743965432543,-1011.82814056,0.00039389,2]
[357264309,1743965433340,-6651.76587244,0.00039389,2]
[357264310,1743965433352,-25126.67531801,0.00039389,2]
[357264311,1743965433373,-377.70887099,0.00039389,2]
[357264326,1743965437993,-740.74,0.00039389,2]
[357264330,1743965438006,-347.0297593,0.00039389,2]
[357264333,1743965438055,-317.11060914,0.00039389,2]
[357264334,1743965438568,-14562.69130905,0.00039389,2]
[357264335,1743965438580,-3024.16004396,0.00039389,2]
[357264336,1743965438592,-387.76194175,0.00039389,2]
[357264337,1743965438603,-5406.709,0.00039389,2]
[357264338,1743965438618,-54048.82887826,0.00039389,2]
[357264339,1743965438627,-925.59746879,0.00039389,16]
[357264340,1743965438637,-2902.95314194,0.00039389,2]
[357264341,1743965438646,-689.26538847,0.00039389,20]
[357264342,1743965438656,-912.70804093,0.00039389,2]
[357264343,1743965438665,-39826.23145966,0.00039389,7]
[357264344,1743965438676,-118246.22784481,0.00039389,2]
[357264345,1743965438685,-14911.25478269,0.00039389,2]
[357264347,1743965438695,-228.42122402,0.00039389,2]
[357264349,1743965438704,-173.35302086,0.00039389,2]
[357264351,1743965438713,-6000.0,0.00039389,2]
[357264353,1743965438723,-374.55871567,0.00039389,2]
[357264356,1743965438732,-1467.15151964,0.00039389,2]
[357264359,1743965438741,-1031.07406379,0.00039389,2]
[357264361,1743965438751,-4839.2332242,0.00039389,2]
[357264363,1743965438760,-901.6312517,0.00039389,2]
[357264365,1743965438770,-7265.84294381,0.00039389,7]
[357264367,1743965438779,-122347.837661,0.00039389,2]
[357264369,1743965438789,-4013.38267499,0.00039389,2]
[357264371,1743965438799,-449.12363575,0.00039389,2]
[357264373,1743965438809,-1065.20209671,0.00039389,2]
[357264375,1743965438819,-21233.32845878,0.00039389,2]
[357264377,1743965438829,-2500.0,0.00039389,2]
[357264379,1743965438839,-578.27457688,0.00039389,2]
[357264381,1743965438848,-341.60220293,0.00039389,2]
[357264383,1743965438858,-398.52031372,0.00039389,7]
[357264385,1743965438873,-1100.0,0.00039389,2]
[357264386,1743965438883,-910.58122489,0.00039389,2]
[357264388,1743965438893,-480.73965855,0.00039389,2]
[357264389,1743965438903,-15557.83961519,0.00039389,2]
[357264391,1743965438913,-169.93803847,0.00039389,2]
[357264393,1743965438923,-310.11787304,0.00039389,7]
[357264395,1743965438933,-1583.28311041,0.00039389,2]
[357264397,1743965438943,-55492.5720611,0.00039389,2]
[357264399,1743965438952,-49897.94820364,0.00039389,2]
[357264401,1743965438962,-546.61631293,0.00039389,2]
[357264403,1743965438971,-1009.44637139,0.00039389,2]
[357264404,1743965438980,-915.472316,0.00039389,3]
[357264406,1743965438990,-363.96284655,0.00039389,2]
[357264408,1743965438999,-2200.44719162,0.00039389,2]
[357264410,1743965439009,-283.04412894,0.00039389,2]
[357264412,1743965439020,-748.51094033,0.00039389,2]
[357264414,1743965439030,-413.626629,0.00039389,3]
[357264416,1743965439040,-500.0,0.00039389,7]
[357264418,1743965439050,-1832.40975694,0.00039389,2]
[357264420,1743965439060,-1115.00336364,0.00039389,2]
[357264422,1743965439070,-3476.16116296,0.00039389,2]
[357264424,1743965439082,-10554.89557477,0.00039389,2]
[357264426,1743965439092,-219.78410898,0.00039389,2]
[357264428,1743965439102,-10174.46232996,0.00039389,2]
[357264430,1743965439116,-8123.85072286,0.00039389,2]
[357264432,1743965439127,-1701.53742131,0.00039389,2]
[357264434,1743965439136,-1427.15246486,0.00039389,2]
[357264435,1743965439146,-202.23131004,0.00039389,2]
[357264437,1743965439155,-497.88878113,0.00039389,2]
[357264439,1743965439165,-281.93740746,0.00039389,2]
[357264441,1743965439174,-5668.32712875,0.00039389,2]
[357264443,1743965439183,-749.73979187,0.00039389,2]
[357264445,1743965439193,-1010.63813818,0.00039389,2]
[357264447,1743965439204,-162.91,0.00039389,2]
[357264449,1743965439214,-1103.70410043,0.00039389,2]
[357264451,1743965439224,-161.27304645,0.00039389,2]
[357264453,1743965439234,-2167.23225115,0.00039389,2]
[357264455,1743965439243,-870.02405655,0.00039389,2]
[357264457,1743965439252,-150.0,0.00039389,2]
[357264459,1743965439261,-6899.34214905,0.00039389,2]
[357264461,1743965439270,-463.0061826,0.00039389,2]
[357264462,1743965439280,-16546.29922752,0.00039389,2]
[357264464,1743965439289,-1665.56919967,0.00039389,2]
[357264466,1743965439299,-600.07013552,0.00039389,2]
[357264468,1743965439309,-315.0,0.000398,120]
[357264470,1743965439319,-1100.0,0.000399,14]
[357264472,1743965439329,-13755.53311621,0.0004,30]
[357264474,1743965439338,-162.293638,0.0004,14]
[357264476,1743965439348,-151.0,0.0004,14]
[357264478,1743965439357,-151.0,0.0004,14]
[357264480,1743965439370,-151.0,0.0004,14]
[357264482,1743965439380,-151.0,0.0004,14]
[357264484,1743965439389,-200.0,0.0004,7]
[357264486,1743965439399,-773.17,0.00040036,120]
[357264488,1743965439409,-200.0,0.000404,7]
[357264490,1743965439419,-1982.42589047,0.00040468,15]
[357264492,1743965439429,-1789.68720959,0.00040468,15]
[357264494,1743965439438,-165.76999,0.000405,3]
[357264496,1743965439447,-863.05916,0.0004066,68]
[357264498,1743965439456,-863.05917,0.0004072,68]
[357264499,1743965439465,-863.05917,0.0004088,68]
[357264501,1743965439474,-981.61047294,0.00041,5]
[357264503,1743965439483,-4640.0,0.00041,117]
[357264505,1743965439494,-243.0,0.00041,14]
[357264522,1743965439650,-863.05917,0.0004103,69]
[357264524,1743965439661,-500.0,0.00041096,30]
[357264526,1743965439671,-500.0,0.00041096,30]
[357264528,1743965439681,-500.0,0.00041096,30]
[357264530,1743965439691,-500.0,0.00041096,30]
[357264532,1743965439700,-500.0,0.00041096,30]
[357264534,1743965439709,-500.0,0.00041096,30]
[357264536,1743965439719,-500.0,0.00041096,30]
[357264538,1743965439728,-500.0,0.00041096,30]
[357264540,1743965439738,-294.0,0.00041096,30]
[357264542,1743965439747,-1110.0,0.00041096,13]
[357264544,1743965439756,-192.0,0.00041096,14]
[357264546,1743965439765,-212.608142,0.00041096,14]
[357264548,1743965439775,-151.0,0.00041096,14]
[357264550,1743965439785,-151.0,0.00041096,14]
[357264552,1743965439796,-205.425593,0.00041096,14]
[357264553,1743965439805,-151.814371,0.00041096,14]
[357264555,1743965439816,-151.991661,0.00041096,14]
[357264557,1743965439826,-284.122988,0.00041096,14]
[357264559,1743965439836,-284.122988,0.00041096,14]
[357264561,1743965439846,-151.0,0.00041096,14]
[357264563,1743965439856,-273.670646,0.00041096,14]
[357264565,1743965439869,-204.36682,0.00041096,14]
[357264567,1743965439879,-273.670646,0.00041096,14]
[357264569,1743965439889,-151.0,0.00041096,14]
[357264571,1743965439898,-151.0,0.00041096,14]
[357264573,1743965439909,-151.0,0.00041096,14]
[357264576,1743965439918,-151.0,0.00041096,14]
[357264578,1743965439927,-151.0,0.00041096,14]
[357264580,1743965439936,-283.777376,0.00041096,14]
[357264582,1743965439946,-151.0,0.00041096,14]
[357264584,1743965439957,-283.777376,0.00041096,14]
[357264586,1743965439967,-415.701629,0.00041096,14]
[357264587,1743965439977,-151.0,0.00041096,14]
[357264589,1743965439987,-415.701629,0.00041096,14]
[357264591,1743965439997,-516.79329782,0.00041096,31]
[357264593,1743965440006,-516.79329782,0.00041096,31]
[357264595,1743965440016,-516.79329782,0.00041096,31]
[357264597,1743965440025,-516.79329782,0.00041096,31]
[357264600,1743965440036,-516.79329782,0.00041096,31]
[357264603,1743965440046,-516.79329782,0.00041096,31]
[357264606,1743965440055,-516.79329782,0.00041096,31]
[357264609,1743965440065,-516.79329782,0.00041096,31]
[357264612,1743965440075,-516.79329782,0.00041096,31]
[357264615,1743965440085,-516.79329782,0.00041096,31]
[357264618,1743965440095,-516.79329782,0.00041096,31]
[357264621,1743965440104,-516.79329782,0.00041096,31]
[357264624,1743965440117,-516.79329782,0.00041096,31]
[357264627,1743965440127,-516.79329782,0.00041096,31]
[357264630,1743965440136,-516.79329782,0.00041096,31]
[357264632,1743965440146,-151.0,0.00041096,14]
[357264635,1743965440156,-551.24618435,0.00041096,31]
[357264639,1743965440166,-551.24618435,0.00041096,31]
[357264641,1743965440176,-551.24618435,0.00041096,31]
[357264644,1743965440186,-551.24618435,0.00041096,31]
[357264646,1743965440195,-551.24618435,0.00041096,31]
[357264648,1743965440205,-551.24618435,0.00041096,31]
[357264650,1743965440214,-551.24618435,0.00041096,31]
[357264652,1743965440223,-551.24618435,0.00041096,31]
[357264654,1743965440233,-152.292373,0.00041096,14]
[357264656,1743965440242,-241.928217,0.00041096,14]
[357264658,1743965440252,-241.928217,0.00041096,14]
[357264660,1743965440261,-151.0,0.00041096,14]
[357264662,1743965440272,-863.05917,0.0004119,69]
[357264664,1743965440281,-208.13,0.00041338,120]
[357264666,1743965440291,-863.05917,0.0004135,69]
[357264668,1743965440302,-581.61,0.00041416,120]
[357264670,1743965440311,-450.09,0.00041524,2]
[357264672,1743965440320,-1135.71,0.00041609,2]
[357264674,1743965440332,-1982.42589047,0.00041647,15]
[357264676,1743965440341,-1789.68720959,0.00041647,15]
[357264678,1743965440352,-700.84,0.00041686,2]
[357264680,1743965440361,-1000.0,0.00041723,2]
[357264682,1743965440375,-351.57097542,0.00041855,120]
[357264684,1743965440386,-159.32,0.0004195,2]
[357264686,1743965440396,-297.94,0.00042,120]
[357264688,1743965440407,-736.47,0.00042,120]
[357264690,1743965440417,-246.92,0.00042,120]
[357264692,1743965440427,-257.84,0.00042,120]
[357264694,1743965440436,-687.80405597,0.00042611,58]
[357264696,1743965440447,-208.13,0.00042707,120]
[357264698,1743965440456,-292.64450599,0.00042733,8]
[357264700,1743965440466,-937.59376707,0.00042791,120]
[357264702,1743965440475,-1982.42589047,0.00042826,15]
[357264703,1743965440485,-1789.68720959,0.00042826,15]
[357264705,1743965440495,-176.19256419,0.00043233,18]
[357264707,1743965440504,-209.393388,0.0004334,14]
[357264709,1743965440513,-151.0,0.0004334,14]
[357264711,1743965440523,-151.0,0.0004334,14]
[357264713,1743965440533,-169.1,0.0004355,2]
[357264715,1743965440542,-1135.71,0.00043591,2]
[357264717,1743965440552,-500.0,0.00043836,120]
[357264719,1743965440562,-254.09315434,0.00043836,120]
[357264721,1743965440571,-500.0,0.00043836,120]
[357264723,1743965440580,-562.33792296,0.00043836,120]
[357264725,1743965440590,-162.70196799,0.0004385,18]
[357264727,1743965440600,-700.84,0.0004395,2]
[357264729,1743965440610,-151.0,0.0004395,14]
[357264731,1743965440627,-234.496658,0.0004395,14]
[357264733,1743965440638,-151.0,0.0004395,14]
[357264735,1743965440649,-762.877723,0.0004395,14]
[357264737,1743965440659,-762.877723,0.0004395,14]
[357264739,1743965440670,-151.0,0.0004395,14]
[357264741,1743965440680,-277.317164,0.0004395,14]
[357264743,1743965440691,-277.317164,0.0004395,14]
[357264745,1743965440701,-187.452101,0.0004395,14]
[357264747,1743965440711,-187.452101,0.0004395,14]
[357264748,1743965440721,-154.874186,0.0004395,14]
[357264750,1743965440732,-2000.0,0.0004399,30]
[357264752,1743965440742,-282.92777372,0.00044,120]
[357264754,1743965440752,-1982.42589047,0.00044005,15]
[357264756,1743965440763,-1789.68720959,0.00044005,15]
[357264758,1743965440773,-168.97137332,0.00044023,14]
[357264760,1743965440784,-157.0,0.00044023,14]
[357264762,1743965440793,-157.0,0.00044023,14]
[357264764,1743965440803,-157.0,0.00044023,14]
[357264766,1743965440814,-157.0,0.00044023,14]
[357264768,1743965440824,-281.53647181,0.00044023,14]
[357264770,1743965440834,-208.13,0.00044077,120]
[357264772,1743965440844,-776.12,0.000443,36]
[357264774,1743965440853,-776.12,0.000443,36]
[357264776,1743965440867,-776.12,0.000443,36]
[357264778,1743965440878,-776.12,0.000443,36]
[357264779,1743965440888,-776.12,0.000443,36]
[357264781,1743965440898,-776.12,0.000443,36]
[357264783,1743965440907,-776.12,0.000443,36]
[357264785,1743965440918,-776.12,0.000443,36]
[357264787,1743965440928,-776.12,0.000443,36]
[357264789,1743965440939,-776.12,0.000443,36]
[357264791,1743965440948,-776.12,0.000443,36]
[357264793,1743965440958,-776.12,0.000443,36]
[357264795,1743965440968,-161.040704,0.00044498,120]
[357264797,1743965440979,-773.17,0.00044514,120]
[357264799,1743965440989,-159.32,0.00044747,2]
[357264801,1743965440999,-260.14,0.00044805,120]
[357264803,1743965441009,-934.1242,0.000449,10]
[357264805,1743965441019,-2300.0,0.000449,16]
[357264807,1743965441030,-179194.01772156,0.00045,2]
[357264809,1743965441042,-672.05541157,0.00045,120]
[357264811,1743965441052,-4170.42447908,0.00045,60]
[357264813,1743965441062,-5551.25940223,0.00045,120]
[357264815,1743965441073,-761.10153243,0.00045,120]
[357264817,1743965441083,-317.65631598,0.00045,2]
[357264819,1743965441093,-302.418382,0.00045,120]
[357264820,1743965441103,-151.0,0.00045,14]
[357264822,1743965441112,-151.0,0.00045,14]
[357264824,1743965441127,-151.0,0.00045,14]
[357264826,1743965441138,-151.0,0.00045,14]
[357264828,1743965441148,-151.0,0.00045,14]
[357264830,1743965441158,-152.540197,0.00045,14]
[357264832,1743965441168,-223.459594,0.00045,14]
[357264834,1743965441179,-224.731996,0.00045,14]
[357264836,1743965441189,-252.451328,0.00045,14]
[357264838,1743965441198,-224.731996,0.00045,14]
[357264840,1743965441208,-252.451328,0.00045,14]
[357264842,1743965441219,-151.0,0.00045,14]
[357264844,1743965441230,-151.0,0.00045,14]
[357264846,1743965441240,-151.0,0.00045,14]
[357264848,1743965441250,-194.158623,0.00045,14]
[357264850,1743965441261,-194.158623,0.00045,14]
[357264852,1743965441271,-151.0,0.00045,14]
[357264854,1743965441280,-151.0,0.00045,14]
[357264856,1743965441289,-151.0,0.00045,14]
[357264858,1743965441302,-151.0,0.00045,14]
[357264860,1743965441311,-151.0,0.00045,14]
[357264862,1743965441320,-151.0,0.00045,14]
[357264863,1743965441329,-151.0,0.00045,14]
[357264865,1743965441340,-151.0,0.00045,14]
[357264867,1743965441350,-151.0,0.00045,14]
[357264869,1743965441359,-151.0,0.00045,14]
[357264872,1743965441376,-553.298491,0.00045,14]
[357264873,1743965441386,-553.298491,0.00045,14]
[357264875,1743965441396,-307.148599,0.00045,14]
[357264877,1743965441406,-307.148599,0.00045,14]
[357264879,1743965441416,-151.0,0.00045,14]
[357264880,1743965441426,-256.349017,0.00045,14]
[357264882,1743965441437,-500.0,0.00045,120]
[357264885,1743965441448,-674.331635,0.00045,14]
[357264887,1743965441458,-674.331635,0.00045,14]
[357264889,1743965441467,-151.0,0.00045,14]
[357264891,1743965441477,-151.0,0.00045,14]
[357264892,1743965441487,-151.0,0.00045,14]
[357264894,1743965441497,-192.457433,0.00045,14]
[357264896,1743965441506,-192.457433,0.00045,14]
[357264898,1743965441516,-288.510051,0.00045,14]
[357264900,1743965441525,-286.667557,0.00045,14]
[357264902,1743965441535,-288.510051,0.00045,14]
[357264904,1743965441545,-151.0,0.00045,14]
[357264906,1743965441555,-151.0,0.00045,14]
[357264908,1743965441565,-762.877723,0.00045,14]
[357264910,1743965441575,-762.877723,0.00045,14]
[357264912,1743965441585,-151.0,0.00045,14]
[357264915,1743965441595,-151.0,0.00045,14]
[357264917,1743965441606,-277.317164,0.00045,14]
[357264918,1743965441619,-277.317164,0.00045,14]
[357264920,1743965441630,-151.0,0.00045,14]
[357264922,1743965441641,-151.0,0.00045,14]
[357264924,1743965441652,-187.452101,0.00045,14]
[357264926,1743965441663,-187.452101,0.00045,14]
[357264928,1743965441674,-284.122988,0.00045,14]
[357264930,1743965441684,-284.122988,0.00045,14]
[357264932,1743965441695,-151.0,0.00045,120]
[357264934,1743965441704,-289.501958,0.00045,14]
[357264936,1743965441714,-273.670646,0.00045,14]
[357264938,1743965441724,-273.670646,0.00045,14]
[357264940,1743965441734,-151.0,0.00045,14]
[357264942,1743965441745,-152.672134,0.00045,14]
[357264944,1743965441755,-151.0,0.00045,14]
[357264946,1743965441765,-246.144028,0.00045,14]
[357264948,1743965441775,-151.0,0.00045,14]
[357264950,1743965441785,-283.777376,0.00045,14]
[357264952,1743965441795,-151.0,0.00045,14]
[357264954,1743965441805,-283.777376,0.00045,14]
[357264955,1743965441815,-415.701629,0.00045,14]
[357264956,1743965441824,-415.701629,0.00045,14]
[357264957,1743965441835,-151.0,0.00045,14]
[357264958,1743965441845,-241.928217,0.00045,14]
[357264959,1743965441855,-241.928217,0.00045,14]
[357264960,1743965441867,-151.0,0.00045,14]
[357264961,1743965441877,-151.0,0.00045,14]
[357264962,1743965441887,-17827.75401089,0.00045,30]
[357264963,1743965441897,-151.0,0.00045,14]
[357264964,1743965441907,-151.0,0.00045,14]
[357264965,1743965441918,-150.6,0.00045136,2]
[357264966,1743965441928,-150.6,0.00045168,2]
[357264967,1743965441939,-1982.42589047,0.00045184,15]
[357264975,1743965442069,-1789.68720959,0.00045184,15]
[357264977,1743965442097,-150.6,0.000452,2]
[357264979,1743965442108,-242.644701,0.00045205,14]
[357264981,1743965442123,-151.0,0.00045205,14]
[357264983,1743965442132,-151.27,0.00045205,2]
[357264985,1743965442143,-150.6,0.00045232,2]
[357264987,1743965442154,-150.6,0.00045265,2]
[357264989,1743965442164,-150.6,0.00045297,2]
[357264991,1743965442174,-150.6,0.00045329,2]
[357264993,1743965442185,-150.6,0.00045361,2]
[357264995,1743965442196,-208.13,0.00045447,120]
[357264997,1743965442206,-161.040704,0.00045498,120]
[357264999,1743965442217,-500.0,0.000455,120]
[357265001,1743965442227,-292.64450599,0.00045567,20]
[357265003,1743965442236,-1135.71,0.00045572,2]
[357265005,1743965442246,-151.0,0.00045657,14]
[357265007,1743965442256,-151.0,0.00045657,14]
[357265009,1743965442266,-687.80405597,0.00045933,68]
[357265011,1743965442276,-16087.3729493,0.0004599,3]
[357265012,1743965442287,-500.0,0.00046,120]
[357265014,1743965442299,-467.38,0.00046,21]
[357265016,1743965442309,-700.84,0.00046214,2]
[357265018,1743965442319,-1000.0,0.00046359,2]
[357265020,1743965442328,-1982.42589047,0.00046363,15]
[357265022,1743965442338,-1789.68720959,0.00046363,15]
[357265024,1743965442348,-937.59376707,0.00046394,120]
[357265026,1743965442357,-161.040704,0.00046498,120]
[357265028,1743965442372,-581.61,0.00046593,120]
[357265030,1743965442383,-208.13,0.00046817,120]
[357265032,1743965442392,-151.0,0.00046981,14]
[357265034,1743965442402,-151.0,0.00046981,14]
[357265036,1743965442411,-151.0,0.00046981,14]
[357265038,1743965442420,-151.0,0.00046981,14]
[357265040,1743965442430,-151.0,0.00046981,14]
[357265042,1743965442440,-151.0,0.00046981,14]
[357265044,1743965442450,-333.571063,0.00046981,14]
[357265046,1743965442460,-333.571063,0.00046981,14]
[357265047,1743965442469,-151.0,0.00046981,14]
[357265049,1743965442479,-151.0,0.00046981,14]
[357265051,1743965442489,-151.0,0.00046981,14]
[357265053,1743965442499,-500.0,0.00047,120]
[357265055,1743965442509,-14772.36893993,0.00047,14]
[357265057,1743965442519,-166.525908,0.00047094,28]
[357265059,1743965442528,-161.040704,0.00047498,120]
[357265061,1743965442538,-2215.52641747,0.000475,120]
[357265063,1743965442547,-1982.42589047,0.00047542,15]
[357265065,1743965442558,-1789.68720959,0.00047542,15]
[357265067,1743965442568,-159.32,0.00047543,2]
[357265069,1743965442578,-1135.71,0.00047553,2]
[357265071,1743965442587,-16087.3729493,0.0004789,4]
[357265073,1743965442597,-1768.0,0.000479,2]
[357265075,1743965442608,-3500.0,0.000479,17]
[357265077,1743965442623,-721.0,0.00047973,120]
[357265080,1743965442633,-500.0,0.00047973,10]
[357265081,1743965442643,-500.0,0.00047973,10]
[357265083,1743965442654,-201.91744668,0.00047973,10]
[357265085,1743965442666,-500.0,0.00047973,10]
[357265086,1743965442675,-500.0,0.00047973,10]
[357265088,1743965442685,-500.0,0.00047973,120]
[357265090,1743965442696,-500.0,0.00047973,120]
[357265092,1743965442706,-500.0,0.00047973,120]
[357265094,1743965442715,-500.0,0.00047973,120]
[357265096,1743965442725,-500.0,0.00047973,120]
[357265098,1743965442734,-500.0,0.00047973,120]
[357265099,1743965442743,-500.0,0.00047973,120]
[357265101,1743965442753,-500.0,0.00047973,120]
[357265103,1743965442763,-500.0,0.00047973,120]
[357265105,1743965442772,-500.0,0.00047973,120]
[357265107,1743965442782,-500.0,0.00047973,120]
[357265109,1743965442791,-500.0,0.00047973,120]
[357265111,1743965442800,-500.0,0.00047973,120]
[357265113,1743965442810,-500.0,0.00047973,120]
[357265115,1743965442820,-500.0,0.00047973,120]
[357265117,1743965442830,-500.0,0.00047973,120]
[357265119,1743965442839,-415.78137332,0.00047973,120]
[357265121,1743965442848,-500.0,0.00047973,120]
[357265122,1743965442859,-500.0,0.00047973,120]
[357265124,1743965442873,-500.0,0.00047973,120]
[357265126,1743965442883,-500.0,0.00047973,120]
[357265128,1743965442893,-500.0,0.00047973,120]
[357265130,1743965442903,-500.0,0.00047973,120]
[357265132,1743965442913,-500.0,0.00047973,120]
[357265134,1743965442923,-500.0,0.00047973,120]